Cogmind - Beta 15 @@@ ROGUE MODE // 2025.05.17 @ 17:28:57 Player: Perseus Result: Self-destructed Performance ------------- Evolutions (2) 1000 Regions Visited (3) 600 Robots Destroyed (28) 140 Value Destroyed (945) 945 Prototype IDs (11) 220 Alien Tech Used (0) 0 Bonus (0) 0 TOTAL SCORE: 2905 Bonus ------- None Cogmind --------- Core Integrity 32/550 Matter 58/300 Energy 126/200 System Corruption 0% Temperature Critical (532) Movement Rolling (170) Ox6 Location -8/Materials Parts ------- > --- POWER (1+2) ------ Subdweller Power Source (+) > --- PROPULSION (4) --- Wheel Subdweller Monowheel Subdweller Monowheel > --- UTILITY (4) ------ High-capacity Storage Unit Gun Armor Power Bank > --- WEAPON (2+1) ----- Subdweller Beam Cannon (+) Battle Rifle Subdweller Machine Gun > --- INVENTORY (20) --- Carbon-fiber Leg Makeshift Flight Unit Large Storage Unit Large Matter Pod (150) Improved Terrain Scanner Seismic Detector Improved Targeting Computer Makeshift Light Armor Plating Makeshift Thermal Plating Hacking Suite Heavy EM Shotgun Subdweller Laser Subdweller Laser Subdweller Machine Gun Subdweller Shrapnel Launcher Mining Laser Piercing Trap Peak State ------------ > --- POWER ------------ Ion Engine Light Ion Engine Subdweller Power Source > --- PROPULSION ------- Wheel Compact Wheel Subdweller Monowheel Subdweller Monowheel > --- UTILITY ---------- High-capacity Storage Unit Makeshift Light Armor Plating Gun Armor Power Bank > --- WEAPON ----------- Subdweller Laser Subdweller Beam Cannon Battle Cannon Battle Cannon > --- INVENTORY -------- Carbon-fiber Leg Makeshift Flight Unit Large Storage Unit Large Matter Pod Improved Terrain Scanner Seismic Detector Improved Targeting Computer Makeshift Thermal Plating Heavy EM Shotgun Subdweller Laser Battle Rifle Subdweller Machine Gun Subdweller Machine Gun Subdweller Shrapnel Launcher Mining Laser Piercing Trap [Rating: 44] Favorites ----------- Power Ion Engine Engine Ion Engine Propulsion Subdweller Monowheel Treads Light Treads Leg Aluminum Leg Wheel Subdweller Monowheel Utility High-capacity Storage Unit Device Seismic Detector Storage High-capacity Storage Unit Protection Gun Armor Weapon Battle Cannon Energy Gun Subdweller Laser Energy Cannon Subdweller Beam Cannon Ballistic Gun Subdweller Machine Gun Ballistic Cannon Battle Cannon Special Weapon Flamer Build | -11 -10 -10 -8 ------- Run | Yrd Mat Sub Mat Slots Evolved 4 | . . . 4 Power . | . . . . Propulsion 2 | . . . 2 Utility 2 | . . . 2 Weapon . | . . . . Parts Attached 40 | 7 3 22 8 Power 5 | 1 . 2 2 Engine 5 | 1 . 2 2 Core . | . . . . Reactor . | . . . . Propulsion 12 | 2 1 8 1 Treads 2 | 1 1 . . Leg 2 | . . 2 . Wheel 8 | 1 . 6 1 Hover . | . . . . Flight . | . . . . Utility 8 | 2 2 2 2 Device 2 | 1 . . 1 Storage 4 | 1 2 1 . Processor . | . . . . Hackware . | . . . . Protection 2 | . . 1 1 Artifact . | . . . . Weapon 15 | 2 . 10 3 Energy Gun 5 | 2 . 3 . Energy Cannon 2 | . . 2 . Ballistic Gun 4 | . . 1 3 Ballistic Cannon 2 | . . 2 . Launcher . | . . . . Special Weapon 2 | . . 2 . Impact Weapon . | . . . . Slashing Weapon . | . . . . Piercing Weapon . | . . . . Special Melee Weapon . | . . . . Unidentified Prototypes . | . . . . Parts Lost 16 | . . 11 5 Power 4 | . . 2 2 Propulsion 4 | . . 3 1 Utility . | . . . . Weapon 8 | . . 6 2 Highest Loss Streak 8 | . . 8 5 To Critical Strikes . | . . . . Average Backups 13 | 5 8 14 16 Power 2 | . 1 2 1 Propulsion 1 | 3 3 1 1 Utility 4 | . 1 5 6 Weapon 4 | 1 2 4 6 Tool/Special . | . . . . Unused Backups 16 | 1 1 4 10 Power 1 | . . 1 . Propulsion 3 | . 1 . 2 Utility 6 | 1 . . 5 Weapon 6 | . . 3 3 Tool/Special . | . . . . Average Slot Usage (%) 94 | . 100 94 90 Engine 12 | . 14 12 9 Treads 2 | . 28 . . Leg 8 | . . 9 . Wheel 14 | . . 14 24 Device 3 | . 14 2 6 Storage 11 | . 14 12 6 Protection 6 | . . 6 13 Energy Gun 13 | . 28 12 6 Energy Cannon 5 | . . 6 6 Ballistic Gun 1 | . . 2 1 Ballistic Cannon 13 | . . 14 12 Peak Build Rating 44 | 8 8 27 44 Average Rating 19 | 5 8 18 35 On Entrance 10 | . 8 8 27 Naked Turns . | . . . . Heaviest Build 82 | 14 29 67 82 Greatest Support 66 | 20 40 40 66 Greatest Overweight (x) 6 | . . 4 6 Average Overweight (x) 2 | . . 2 1 Largest Inventory Capacity 25 | 8 20 25 20 Average Capacity 19 | 7 12 20 20 Most Carried 20 | 8 11 20 20 Average Carried 15 | 5 8 16 17 Final Capacity 20 | 8 15 20 20 Final Carried 20 | 8 11 20 17 Class Distribution -------------------- 45% | Mutant 45% | Gunner 8% | Scavenger-Tank Dominant Class ---------------- Mutant | -10/Materials Gunner | -10/Subcaves Scavenger-Tank | -8/Materials Resources | -11 -10 -10 -8 ----------- Run | Yrd Mat Sub Mat Matter Collected 1174 | 234 66 736 138 Remotely . | . . . . Salvage Created 1048 | 53 . 744 251 Parts 63 | 9 . 43 11 Haulers Intercepted . | . . . . Recyclers Shooed . | . . . . Parts Field Recycled . | . . . . Retrieved Matter . | . . . . Parts Self-Destructed 13 | . . 13 . Prevented . | . . . . Kills | -11 -10 -10 -8 ------- Run | Yrd Mat Sub Mat Combat Hostiles Destroyed 22 | . . 18 4 Guns 10 | . . 8 2 Cannons 12 | . . 10 2 Classes Destroyed 8 | 1 . 3 4 Worker 1 | . . . 1 Builder 1 | . . . 1 Tunneler 3 | 3 . . . Recycler 1 | . . . 1 Grunt 6 | . . 4 2 Brawler 1 | . . . 1 Sentry 2 | . . 1 1 Subdweller 13 | . . 13 . Best Kill Streak 5 | 2 . 3 5 Combat Bots Only 3 | . . 3 2 Max Kills in Single Turn 1 | 1 . 1 1 Gunslinging . | . . . . Exploded . | . . . . Melee . | . . . . Uniques/NPCs Destroyed . | . . . . Combat | -11 -10 -10 -8 -------- Run | Yrd Mat Sub Mat Hostile Shots Fired 148 | . . 97 51 Missed 34 | . . 30 4 Hits 114 | . . 67 47 Melee 2 | . . . 2 Projectile 112 | . . 67 45 Critical Strikes 4 | . . 1 3 Damage Taken 2631 | . . 1433 1198 Core 753 | . . 235 518 Absorbed by Shields . | . . . . Regen/Repaired (Parts) 24 | . . . 24 Core Remaining (%) 53 | 100 . 6 . Volleys Fired 133 | 10 2 98 23 Largest 4 | 1 2 4 4 Hottest 206 | 40 80 206 206 Shots Fired 246 | 10 4 176 56 Gun 118 | 10 4 83 21 Cannon 123 | . . 88 35 Launcher . | . . . . Special 5 | . . 5 . Kinetic 112 | . . 80 32 Thermal 95 | 9 2 60 24 Explosive . | . . . . Electromagnetic 39 | 1 2 36 . Robot Hit Streak 29 | 3 1 29 5 Robot Miss Streak 7 | 1 1 3 7 Penetration Max . | . . . . Secondary Targets 1 | . . 1 . Max Gunslinging Chain 1 | . . 1 . Shots Hit Robots 135 | 7 2 100 26 Core Hits 47 | 3 . 34 10 Critical Kills 1 | . . 1 . Critical Parts Destroyed 1 | . . . 1 Critical Strikes 6 | . . 4 2 Meltdown 1 | . . 1 . Destroy 1 | . . . 1 Blast 3 | . . 2 1 Corrupt 1 | . . 1 . Melee Attacks . | . . . . Impact . | . . . . Slashing . | . . . . Piercing . | . . . . Sneak Attacks . | . . . . Combat Hostiles . | . . . . Follow-up Attacks . | . . . . Damage Inflicted 2674 | 89 22 1822 741 Guns 1258 | 89 22 872 275 Cannons 1262 | . . 796 466 Explosions 110 | . . 110 . Melee . | . . . . Ramming . | . . . . Kinetic 871 | . . 502 369 Thermal 1452 | 74 22 984 372 Explosive . | . . . . Electromagnetic 351 | 15 . 336 . Impact . | . . . . Slashing . | . . . . Piercing . | . . . . Highest Corruption . | . . . . Average Corruption . | . . . . Corruption Purged . | . . . . Corruption Blocked . | . . . . Overload Shots . | . . . . Overflow Damage 30 | . . 30 . Projectiles 6 | . . 6 . Explosions 24 | . . 24 . Melee . | . . . . Knockbacks 6 | . . 4 2 Impact . | . . . . Kinetic 6 | . . 4 2 Secondary . | . . . . Self-Inflicted Damage 50 | . . 50 . Shots 1 | . . 1 . Rammed . | . . . . Targets Rammed . | . . . . Kicked . | . . . . Crushed . | . . . . Highest Temperature 1094 | . 18 230 1094 Average Temperature 327 | . 12 82 537 Received Heat Transfer 843 | . . 402 441 Effects 39 | . . . 39 Shutdowns 6 | . . . 6 Energy Bleed 5 | . . . 5 Interference 5 | . . . 5 Matter Decay 6 | . . . 6 Short Circuit 3 | . . . 3 Damage (minor) 1 | . . . 1 Damage (major) 7 | . . . 7 Damage (core) 6 | . . . 6 Siege Activations . | . . . . Martial Activations . | . . . . Shielding Activations . | . . . . Robots Disrupted . | . . . . Combat Hostiles . | . . . . Robots Corrupted . | . . . . Combat Hostiles . | . . . . Parts Fried 4 | . . 4 . Impact Corruptions . | . . . . Robots Melted 1 | . . 1 . Combat Hostiles 1 | . . 1 . Parts Melted 2 | . . 1 1 Heat Transferred 2361 | 175 50 1651 485 Parts Sabotaged . | . . . . Parts Stolen . | . . . . Parts Stripped . | . . . . Power Chain Reactions 1 | . . 1 . Alert | -11 -10 -10 -8 ------- Run | Yrd Mat Sub Mat Maximum Alert Level . | . . . . Low Security (%) 100 | 100 100 . 100 Level 1 . | . . . . Level 2 . | . . . . Level 3 . | . . . . Level 4 . | . . . . Level 5 . | . . . . High Security . | . . . . Max Security . | . . . . Peak Influence 63 | 5 . . 63 Initial . | . . . . Average 6 | . . . 11 Influence Increases 320 | 15 . 165 140 Destroy 0b10 Robot/C 180 | . . 100 80 Destroy 0b10 Robot/NC 30 | 15 . . 15 Destroy Leader 40 | . . 20 20 Successful Hack 3 | . . . 3 Disable Machine 15 | . . . 15 Destroy Structure 7 | . . . 7 Lose Combat Pursuer 45 | . . 45 . Influence Decreases 291 | 15 . 165 111 Time Decay 231 | 15 . 155 61 Lost Part 60 | . . 10 50 Squads Dispatched 1 | . 1 . . Investigation . | . . . . Extermination . | . . . . Reinforcement 1 | . 1 . . Assault . | . . . . Garrison . | . . . . Intercept . | . . . . Searches Triggered . | . . . . Construction Impeded . | . . . . Haulers Reinforced . | . . . . Active Scanning Responses . | . . . . Cargo Convoy Interrupts . | . . . . Stealth | -11 -10 -10 -8 --------- Run | Yrd Mat Sub Mat Distress Signals 1 | . . . 1 Communications Jammed . | . . . . Distress Signals . | . . . . Times Spotted 32 | . 3 22 7 Peak Tracking Total 4 | . 1 4 3 Tactical Retreats 3 | . . 3 . Traps | -11 -10 -10 -8 ------- Run | Yrd Mat Sub Mat Traps Triggered . | . . . . Indirectly . | . . . . Trap Hack Attempts . | . . . . Triggered . | . . . . Disarmed . | . . . . Reprogrammed . | . . . . Reused . | . . . . Traps Extracted . | . . . . Installed 2 | . . 2 . Triggered . | . . . . Most Traps Carried 1 | . . 1 1 Machines | -11 -10 -10 -8 ---------- Run | Yrd Mat Sub Mat Machines Disabled 2 | . . 1 1 Max in Single Turn 1 | . . 1 1 Machines Repaired . | . . . . Machines Dismantled . | . . . . Machines Sabotaged . | . . . . Overloaded Fab Kills . | . . . . Hacking | -11 -10 -10 -8 --------- Run | Yrd Mat Sub Mat Machines Accessed 4 | . 1 1 2 Terminals 2 | . 1 . 1 Fabricators . | . . . . Repair Stations 1 | . . . 1 Recycling Units . | . . . . Scanalyzers . | . . . . Garrison Access . | . . . . Total Hacks 8 | . 4 1 3 Successful 5 | . 2 1 2 Failed 3 | . 2 . 1 Catastrophic 1 | . 1 . . Database Lockouts . | . . . . Manual 4 | . 3 . 1 Terminals 5 | . 4 . 1 Fabricators . | . . . . Repair Stations 2 | . . . 2 Recycling Units . | . . . . Scanalyzers . | . . . . Garrison Access . | . . . . Terminal Hacks 3 | . 2 1 . Robot Analysis 1 | . 1 . . Locate Traps 1 | . 1 . . Proto ID Catalog 1 | . . 1 . Fabricator Hacks . | . . . . Repair Station Hacks 2 | . . . 2 Scan Component 1 | . . . 1 Repair 1 | . . . 1 Recycling Unit Hacks . | . . . . Scanalyzer . | . . . . Garrison Access Hacks . | . . . . Unauthorized Hacks . | . . . . Terminals . | . . . . Fabricators . | . . . . Repair Stations . | . . . . Recycling Units . | . . . . Scanalyzers . | . . . . Garrison Access . | . . . . Data Cores Recovered . | . . . . Used . | . . . . Hacking Detections 2 | . 1 . 1 Full Trace Events . | . . . . Feedback Events . | . . . . Feedback Blocked . | . . . . Robot Schematics Acquired . | . . . . Robots Built . | . . . . Authchips . | . . . . Time . | . . . . Total Robot Build Rating . | . . . . Part Schematics Acquired . | . . . . Parts Built . | . . . . Authchips . | . . . . Time . | . . . . Total Part Build Rating . | . . . . Parts Repaired 1 | . . . 1 Time 44 | . . . 44 Parts Recycled . | . . . . Recycled Matter . | . . . . Retrieved Matter . | . . . . Retrieved Components . | . . . . Parts Scanalyzed . | . . . . Part Schematics Acquired . | . . . . Parts Damaged . | . . . . Bothacking | -11 -10 -10 -8 ------------ Run | Yrd Mat Sub Mat Used RIF Installer . | . . . . Robots Hacked . | . . . . Non-combat . | . . . . Combat . | . . . . Robot Hacks Applied . | . . . . Relay Couplers Released . | . . . . Fabnet Peak Effective % . | . . . . Robots Rewired . | . . . . Allies Hacked . | . . . . Hacks Repelled . | . . . . Allies | -11 -10 -10 -8 -------- Run | Yrd Mat Sub Mat Total Allies . | . . . . Largest Group . | . . . . Highest-Rated Group . | . . . . Highest-Rated Ally . | . . . . Total Orders . | . . . . Ally Attacks . | . . . . Total Damage . | . . . . Kills . | . . . . Allies Corrupted . | . . . . Allies Melted . | . . . . Intel | -11 -10 -10 -8 ------- Run | Yrd Mat Sub Mat Active Infowar (turns) 804 | 38 158 447 161 Seismic 804 | 38 158 447 161 Robot Analysis Total 1 | . 1 . . Derelict Logs Recovered 1 | . . 1 . Drone Launches . | . . . . Drone Recoveries . | . . . . Exploration | -11 -10 -10 -8 ------------- Run | Yrd Mat Sub Mat Turns Passed 2773 | 106 158 2234 275 Spaces Moved 1459 | 49 89 1204 117 Core 13 | 13 . . . Treads 132 | 36 89 7 . Legs 63 | . . 63 . Wheels 1251 | . . 1134 117 Hover . | . . . . Flight . | . . . . Fastest Speed 50 | 50 160 110 109 Average Speed 140 | 130 160 141 115 Slowest Speed 330 | 160 160 330 170 Overloaded Moves . | . . . . Propulsion Burnouts . | . . . . Robots Hopped . | . . . . Potential Cave-ins . | . . . . Cave-ins Triggered . | . . . . Exploration Rate (%) 26 | 3 17 69 16 Regions Visited 3 Branch Regions 1 Pre-discovered Areas . | . . . . Known Exits Taken . | . . . . Unknown Exits Taken 3 | 1 1 1 . Scrap Searched 8 | . . 8 . Spaces Dug 1 | . . . 1 Terrain Destroyed 14 | . . 8 6 Melee . | . . . . Projectile 9 | . . 3 6 AOE 5 | . . 5 . Terrain Rammed . | . . . . Walls Destroyed . | . . . . Machines Disabled . | . . . . Actions | -11 -10 -10 -8 --------- Run | Yrd Mat Sub Mat Total 1971 | 80 101 1577 213 Wait 236 | . . 182 54 Move 1456 | 48 88 1203 117 Hop . | . . . . Pick Up 74 | 13 4 51 6 Fast Attach 8 | 4 . 4 . Attach 27 | 3 . 16 8 Detach 1 | . . . 1 Swap 12 | . 4 5 3 Drop 22 | 2 3 16 1 Fire 133 | 10 2 98 23 Melee . | . . . . Ram . | . . . . Kick . | . . . . Crush . | . . . . Escape Stasis . | . . . . Rewire . | . . . . Trap 2 | . . 2 . Miscellaneous . | . . . . Route ------- -11/Scrapyard -10/Materials -10/Subcaves (discovered 2 exits: *Mat x2) -8/Materials History --------- Turn | Location | Event 2 | -11/Scrapyard | Met Revision 17 22 | -11/Scrapyard | Discovered new exit (range 15) 107 | -11/Scrapyard | Entered Materials 198 | -10/Materials | Discovered new exit (range 7) 265 | -10/Materials | Entered Subcaves 266 | -10/Subcaves | Approached by a straggling Scientist 307 | -10/Subcaves | Build established: Mutant 347 | -10/Subcaves | Core integrity fell below 50% 392 | -10/Subcaves | Lost 8 parts (1p2n5w) 637 | -10/Subcaves | A swath of the cavern ceiling suddenly collapsed 641 | -10/Subcaves | Shifting Twisted Machinery released Lgt. Humpback 645 | -10/Subcaves | Discovered new exit (range 9) 646 | -10/Subcaves | Shifting Twisted Machinery released Sub. Laser 1221 | -10/Subcaves | Visited 4L-MR0's lab 1263 | -10/Subcaves | Found Gun Armor 1265 | -10/Subcaves | Attached Gun Armor, gained temporary slots: Weapon x2 1498 | -10/Subcaves | Shifting Twisted Machinery released Sub. Machine Gun 1511 | -10/Subcaves | Shifting Twisted Machinery released Mak. Flight Unit 1516 | -10/Subcaves | Shifting Twisted Machinery released Battle Rifle 1545 | -10/Subcaves | Shifting Twisted Machinery released Mak. Light Armor Plating 1572 | -10/Subcaves | Build established: Gunner 1909 | -10/Subcaves | Learned Materials machine intel 2110 | -10/Subcaves | Disturbed a concealed Subdweller 2340 | -10/Subcaves | Core integrity fell below 20% 2361 | -10/Subcaves | Found Power Bank 2484 | -10/Subcaves | Discovered new exit (range 12) 2499 | -10/Subcaves | Entered Materials 2499 | -8/Materials | Evolved 4 slots: Propulsion x2, Utility x2 2500 | -8/Materials | Loaded intel: 50 machine locations 2625 | -8/Materials | Repaired Broken Sub. Monowheel 2676 | -8/Materials | Attached Power Bank, gained temporary slots: Power x3 2742 | -8/Materials | Core integrity fell below 50% 2772 | -8/Materials | Core integrity fell below 20% 2774 | -8/Materials | Self-destructed Last Messages --------------- 02758_ Acquired 7 matter. 02759_ R-06 Scavenger collects Welding Torch. 02760_ Overheating: Matter decay (-19). 02761_ K-01 Serf collects debris. 02763_ R-06 Scavenger collects Structural Scanner. 02763_ Acquired 1 matter. 02765_ Overheating: Core damaged (-88). 02765_ K-01 Serf collects debris. 02766_ Broken Com. Wheel destroyed. 02767_ R-06 Scavenger collects Lgt. Ion Engine. 02768_ Overheating: Matter decay (-17). 02770_ G-47 Trooper destroyed. 02771_ Overheating: Broken Sub. Monowheel damaged (-27). 02771_ Overheating: Wheel damaged (-6). 02771_ Overheating: Hcp. Storage Unit damaged (-87). 02771_ Overheating: Power Bank damaged (-55). 02771_ K-01 Serf collects debris. 02772_ Overheating: Core damaged (-88). 02773_ Overheating: Core damaged (-55). 02774_ Overheating: Matter decay (-12). Map ----- +----------------------------------------------------+ | ??????????????????????# #??????#?????????? | | ??????????????????????####+#########?????????????? | | ?????????????????######?# + #?????????????? | | ?????????????????# # # """ #?????????????? | | ?????????????????# # # """ #?????????????? | | ?????????????????# + + """ #?????????????? | | ?????????????????# # # #?????????????? | | ?????????????????# # # #?????????????? | | ?????????????????# ?# #?######?????????????? | | ?????????????????######?# #????????????????????? | | ????????????????????????# #????????????????????? | | ????????????????????????# #????????????????????? | | ????????????????????????# #????????????????????? | | ????????????????????????# #????????????????????? | | ????????????????????????# #????????????????????? | | ?????????????????######## #?????????????????"""? | | ?????????????????# # #?????????????????"""? | | ?????????????????# # #?????????????????"""? | | ?????????????????# """ # #????????????????????? | | ?????????????????# """ + #?????????#???????"""? | | ?????????????????# """ # #??????? #???????"""? | | ??"""????????????# # #?????? ?????????"""? | | ??"""????????????######## ##??? ??????????????? | | ??"""??????????????????# ###+##########??????? | | ???????????????????????# w ?????? | | ???????????????????????# @ = ?????? | | ???????????????????##### !! uku h ?????? | | ???????????? r = ############????????? | | ???????????????########## %%##???????????????????? | | ????????????????????????# =%#??????????????????""" | | ????????????????????????# !#??????????????????""" | | ?????????????????????""##% +??????????????????""" | | ?????T???????????????T"?# %=#??????????????"""???? | | ?????????????????????""?# #??????????????"R????? | | ????????????????????????# % #??????????????"""???? | | ???????????????????????? %????????????????????? | | ???????????????????????? % ????????????????????? | | ??????????????????????? T ????????????????????? | | ???????????????????????# %????????????????????? | | ??????????????????"T"??# #???????????????????? | | ???????????????????????######????????????????????? | | ?????????????????????????????????????????????????? | | """?"""??????????????????????????????????????????? | | """?"""??????????????????????????????????????????? | | """?"""??????????????????????????????????????????? | | ?????????????????????????????????????????????????? | | ?????????????????????????????????????????????????? | | ?????????????????????????????????????????????????? | | ?????????????????????????????????????????????????? | | ?????????????????????????????????????????????????? | +----------------------------------------------------+ Best States ------------- Heat Dissipation 31 Energy Generation 25 Energy Capacity 375 Matter Stores 300 Matter Capacity 300 Sight Range 16 Terrain Scan Density 10 Armor Coverage 160 Evasion (%) 50 Recoil Reduction 2 Item Schematics ----------------- None Robot Schematics ------------------ None Fabricated ------------ Nothing Repaired ---------- Sub. Monowheel | 60% | -8/Materials | Broken Alien Tech Used ----------------- None Achievements -------------- None Challenges ------------ None Game ------ Seed SuspensionSlugImmobilizer Manual? 0 Play Time 00:25:47 Cumulative 789.5 hours Start 2025.05.17 @ 14:32:14 End 2025.05.17 @ 17:28:57 Sessions 3 Manual Loads 0 Difficulty Rogue Special Mode None Game No. 142 Rogue 118 Adventurer 24 Explorer 0 Win Type - Total 29 Types 18/2/3/3/1/0/1/1/0/0 Lore% 74 Gallery% 84 Achievement% 88 Wizard Run 0 Options --------- Layout 0 ASCII 0 Keyboard 0 Movement Mouse Keybinds 0 Fullscreen 1 Font 36/Smallcaps Map View 76x50 Zoom Use 0% Tactical HUD 1 Map Filters SHIFT_HUE(360) Filters NONE Steam 1 RUN: 341a64ce-cd0e-4817-8c01-7e18f1d5a187